[Event "Titled Tuesday Blitz April 18 Late 2023"]
[White "Manukian, Artak"]
[Black "Paravyan, David"]
[WhiteFideId "13301373"]
[BlackFideId "4194985"]
[WhiteElo "2130"]
[BlackElo "2563"]
[Result "0-1"]
[Round "01"]
[TimeControl "180+2"]
[Date "2023.04.18"]
[WhiteClock "0:00:21"]
[BlackClock "0:00:23"]

1. e4 {[%clk 0:02:54]}  Nc6 {[%clk 0:02:17]} 2. Nf3 {[%clk 0:02:30]}  d5 {[%clk 0:02:16]} 3. exd5 {[%clk 0:02:29]}  Qxd5 {[%clk 0:02:17]} 4. Nc3 {[%clk 0:02:30]}  Qh5 {[%clk 0:02:17]} 5. d4 {[%clk 0:02:29]}  Bg4 {[%clk 0:02:16]} 6. Be2 {[%clk 0:02:18]}  O-O-O {[%clk 0:02:16]} 7. h3 {[%clk 0:02:08]}  e5 {[%clk 0:02:09]} 8. d5 {[%clk 0:02:05]}  Nf6 {[%clk 0:01:56]} 9. O-O {[%clk 0:02:01]}  e4 {[%clk 0:01:36]} 10. Ng5 {[%clk 0:01:29]}  Bxe2 {[%clk 0:01:32]} 11. Qxe2 {[%clk 0:01:29]}  Qxe2 {[%clk 0:01:31]} 12. Nxe2 {[%clk 0:01:30]}  Rxd5 {[%clk 0:01:30]} 13. Nxf7 {[%clk 0:01:28]}  Rg8 {[%clk 0:01:30]} 14. Nc3 {[%clk 0:01:23]}  Rd7 {[%clk 0:01:10]} 15. Ng5 {[%clk 0:01:23]}  Nd4 {[%clk 0:01:10]} 16. Ngxe4 {[%clk 0:01:20]}  Nxe4 {[%clk 0:01:10]} 17. Nxe4 {[%clk 0:01:20]}  Nxc2 {[%clk 0:01:11]} 18. Rb1 {[%clk 0:01:20]}  Be7 {[%clk 0:01:11]} 19. Bf4 {[%clk 0:01:12]}  Rgd8 {[%clk 0:01:05]} 20. Nc3 {[%clk 0:01:07]}  Bf6 {[%clk 0:01:01]} 21. Rfd1 {[%clk 0:00:58]}  Rxd1+ {[%clk 0:00:57]} 22. Rxd1 {[%clk 0:00:58]}  Bxc3 {[%clk 0:00:51]} 23. Rxd8+ {[%clk 0:00:57]}  Kxd8 {[%clk 0:00:52]} 24. bxc3 {[%clk 0:00:57]}  Na3 {[%clk 0:00:51]} 25. Be5 {[%clk 0:00:53]}  g6 {[%clk 0:00:52]} 26. g4 {[%clk 0:00:52]}  Kd7 {[%clk 0:00:52]} 27. f4 {[%clk 0:00:51]}  Nc4 {[%clk 0:00:52]} 28. Bd4 {[%clk 0:00:47]}  b6 {[%clk 0:00:52]} 29. Kf2 {[%clk 0:00:44]}  c5 {[%clk 0:00:51]} 30. Bg7 {[%clk 0:00:43]}  Ke6 {[%clk 0:00:48]} 31. Kf3 {[%clk 0:00:42]}  Nd6 {[%clk 0:00:46]} 32. Be5 {[%clk 0:00:41]}  Nc4 {[%clk 0:00:42]} 33. Bb8 {[%clk 0:00:39]}  a5 {[%clk 0:00:39]} 34. Ke4 {[%clk 0:00:38]}  Nd2+ {[%clk 0:00:39]} 35. Kd3 {[%clk 0:00:39]}  Nf3 {[%clk 0:00:34]} 36. Ba7 {[%clk 0:00:36]}  b5 {[%clk 0:00:35]} 37. Bxc5 {[%clk 0:00:34]}  Kd5 {[%clk 0:00:35]} 38. Bb6 {[%clk 0:00:34]}  a4 {[%clk 0:00:32]} 39. a3 {[%clk 0:00:31]}  Ne1+ {[%clk 0:00:29]} 40. Kd2 {[%clk 0:00:29]}  Ng2 {[%clk 0:00:30]} 41. Bc7 {[%clk 0:00:22]}  Ke4 {[%clk 0:00:28]} 42. c4 {[%clk 0:00:22]}  bxc4 {[%clk 0:00:25]} 43. Kc3 {[%clk 0:00:22]}  Ne3 {[%clk 0:00:23]} 44. Kb4 {[%clk 0:00:20]}  Nd5+ {[%clk 0:00:23]} 45. Kxc4 {[%clk 0:00:19]}  Nxc7 {[%clk 0:00:23]} 46. Kb4 {[%clk 0:00:20]}  Kxf4 {[%clk 0:00:23]} 47. Kxa4 {[%clk 0:00:21]}  Kg3 {[%clk 0:00:23]} 0-1


[Site "https://www.chess.com"]

[Event "Titled Tuesday Blitz April 18 Late 2023"]
[White "Kamsky, Gata"]
[Black "Le Goff, Ronan"]
[WhiteFideId "2000024"]
[BlackFideId "612073"]
[WhiteElo "2660"]
[BlackElo "2275"]
[Result "1-0"]
[Round "01"]
[TimeControl "180+2"]
[Date "2023.04.18"]
[WhiteClock "0:00:41"]
[BlackClock "0:00:01"]

1. e4 {[%clk 0:03:00]}  e5 {[%clk 0:02:57]} 2. Nf3 {[%clk 0:03:00]}  Nc6 {[%clk 0:02:57]} 3. Bb5 {[%clk 0:03:00]}  a6 {[%clk 0:02:57]} 4. Ba4 {[%clk 0:03:00]}  Nf6 {[%clk 0:02:57]} 5. O-O {[%clk 0:03:00]}  b5 {[%clk 0:02:57]} 6. Bb3 {[%clk 0:03:00]}  Be7 {[%clk 0:02:58]} 7. c3 {[%clk 0:02:59]}  O-O {[%clk 0:02:49]} 8. Re1 {[%clk 0:02:48]}  d5 {[%clk 0:02:44]} 9. d3 {[%clk 0:02:43]}  dxe4 {[%clk 0:02:32]} 10. dxe4 {[%clk 0:02:43]}  Qxd1 {[%clk 0:02:31]} 11. Bxd1 {[%clk 0:02:43]}  Bb7 {[%clk 0:02:29]} 12. a4 {[%clk 0:02:41]}  Bd6 {[%clk 0:02:23]} 13. Nbd2 {[%clk 0:02:39]}  Rfe8 {[%clk 0:02:15]} 14. b4 {[%clk 0:02:33]}  Nd8 {[%clk 0:01:46]} 15. Be2 {[%clk 0:01:30]}  c6 {[%clk 0:01:31]} 16. Bf1 {[%clk 0:01:27]}  Ne6 {[%clk 0:01:29]} 17. Nb3 {[%clk 0:01:25]}  Bc7 {[%clk 0:01:26]} 18. Ng5 {[%clk 0:01:22]}  Nf4 {[%clk 0:01:18]} 19. g3 {[%clk 0:01:19]}  Ng6 {[%clk 0:01:13]} 20. Nc5 {[%clk 0:01:18]}  Rab8 {[%clk 0:01:02]} 21. c4 {[%clk 0:01:12]}  Bc8 {[%clk 0:00:27]} 22. Bd2 {[%clk 0:01:08]}  h6 {[%clk 0:00:24]} 23. Nf3 {[%clk 0:01:07]}  Bg4 {[%clk 0:00:22]} 24. Kg2 {[%clk 0:01:04]}  Red8 {[%clk 0:00:19]} 25. Bc3 {[%clk 0:01:01]}  Bd6 {[%clk 0:00:16]} 26. Nxa6 {[%clk 0:01:00]}  Ra8 {[%clk 0:00:15]} 27. axb5 {[%clk 0:01:00]}  cxb5 {[%clk 0:00:15]} 28. c5 {[%clk 0:01:00]}  Bf8 {[%clk 0:00:14]} 29. Bxb5 {[%clk 0:00:59]}  h5 {[%clk 0:00:07]} 30. Nxe5 {[%clk 0:00:58]}  Nxe5 {[%clk 0:00:06]} 31. Bxe5 {[%clk 0:00:58]}  h4 {[%clk 0:00:06]} 32. h3 {[%clk 0:00:57]}  Be6 {[%clk 0:00:05]} 33. gxh4 {[%clk 0:00:55]}  Be7 {[%clk 0:00:05]} 34. Bc6 {[%clk 0:00:50]}  Rac8 {[%clk 0:00:04]} 35. Bb7 {[%clk 0:00:50]}  Nh5 {[%clk 0:00:03]} 36. Bxc8 {[%clk 0:00:49]}  Bxc8 {[%clk 0:00:03]} 37. b5 {[%clk 0:00:48]}  f6 {[%clk 0:00:03]} 38. Bc7 {[%clk 0:00:46]}  Rd2 {[%clk 0:00:01]} 39. Red1 {[%clk 0:00:41]} 1-0


[Site "https://www.chess.com"]

[Event "Titled Tuesday Blitz April 18 Late 2023"]
[White "Grigoriants, Sergey"]
[Black "Storey, Charles H"]
[WhiteFideId "4130804"]
[BlackFideId "406686"]
[WhiteElo "2502"]
[BlackElo "2196"]
[Result "1-0"]
[Round "01"]
[TimeControl "180+2"]
[Date "2023.04.18"]
[WhiteClock "0:01:06"]
[BlackClock "0:01:00"]

1. d4 {[%clk 0:03:00]}  g6 {[%clk 0:02:59]} 2. e4 {[%clk 0:03:00]}  Bg7 {[%clk 0:03:00]} 3. Nf3 {[%clk 0:03:00]}  c5 {[%clk 0:02:59]} 4. d5 {[%clk 0:03:00]}  d6 {[%clk 0:02:59]} 5. Bb5+ {[%clk 0:03:00]}  Bd7 {[%clk 0:02:59]} 6. a4 {[%clk 0:03:01]}  Nf6 {[%clk 0:02:59]} 7. Nc3 {[%clk 0:03:00]}  O-O {[%clk 0:02:51]} 8. O-O {[%clk 0:03:00]}  Bxb5 {[%clk 0:02:50]} 9. axb5 {[%clk 0:02:59]}  Nbd7 {[%clk 0:02:51]} 10. Re1 {[%clk 0:02:58]}  Ne8 {[%clk 0:02:50]} 11. Bf4 {[%clk 0:02:50]}  f6 {[%clk 0:02:49]} 12. Ne2 {[%clk 0:02:40]}  Nc7 {[%clk 0:02:48]} 13. c4 {[%clk 0:02:40]}  a6 {[%clk 0:02:48]} 14. bxa6 {[%clk 0:02:39]}  Nxa6 {[%clk 0:02:48]} 15. Bd2 {[%clk 0:02:36]}  Nb4 {[%clk 0:02:44]} 16. Bxb4 {[%clk 0:02:23]}  cxb4 {[%clk 0:02:42]} 17. Nfd4 {[%clk 0:02:17]}  Nc5 {[%clk 0:02:41]} 18. Nf4 {[%clk 0:02:15]}  Rxa1 {[%clk 0:02:31]} 19. Qxa1 {[%clk 0:02:15]}  Qa8 {[%clk 0:02:23]} 20. Nde6 {[%clk 0:02:11]}  Qxa1 {[%clk 0:02:15]} 21. Rxa1 {[%clk 0:02:10]}  Nxe6 {[%clk 0:02:05]} 22. Nxe6 {[%clk 0:02:08]}  Rb8 {[%clk 0:02:06]} 23. Ra4 {[%clk 0:02:02]}  b5 {[%clk 0:01:54]} 24. Rxb4 {[%clk 0:02:02]}  Ra8 {[%clk 0:01:39]} 25. g3 {[%clk 0:01:56]}  bxc4 {[%clk 0:01:39]} 26. Rxc4 {[%clk 0:01:55]}  f5 {[%clk 0:01:39]} 27. exf5 {[%clk 0:01:52]}  Bxb2 {[%clk 0:01:36]} 28. fxg6 {[%clk 0:01:48]}  hxg6 {[%clk 0:01:36]} 29. Rb4 {[%clk 0:01:36]}  Bf6 {[%clk 0:01:34]} 30. Rb5 {[%clk 0:01:31]}  Kf7 {[%clk 0:01:34]} 31. h4 {[%clk 0:01:31]}  Ra2 {[%clk 0:01:28]} 32. Kg2 {[%clk 0:01:25]}  Rd2 {[%clk 0:01:25]} 33. Kf3 {[%clk 0:01:25]}  Bd4 {[%clk 0:01:17]} 34. Rb8 {[%clk 0:01:12]}  Kf6 {[%clk 0:01:08]} 35. Ke4 {[%clk 0:01:07]}  g5 {[%clk 0:01:00]} 36. hxg5+ {[%clk 0:01:06]} 1-0


[Site "https://www.chess.com"]

[Event "Titled Tuesday Blitz April 18 Late 2023"]
[White "Marczuk, Dominik"]
[Black "Fressinet, Laurent"]
[WhiteFideId "1111264"]
[BlackFideId "608742"]
[WhiteElo "2174"]
[BlackElo "2633"]
[Result "0-1"]
[Round "01"]
[TimeControl "180+2"]
[Date "2023.04.18"]
[WhiteClock "0:00:03"]
[BlackClock "0:00:05"]

1. e4 {[%clk 0:02:55]}  e6 {[%clk 0:02:54]} 2. d4 {[%clk 0:02:53]}  d5 {[%clk 0:02:54]} 3. Nd2 {[%clk 0:02:54]}  c5 {[%clk 0:02:54]} 4. exd5 {[%clk 0:02:53]}  Qxd5 {[%clk 0:02:53]} 5. Ngf3 {[%clk 0:02:53]}  cxd4 {[%clk 0:02:52]} 6. Bc4 {[%clk 0:02:52]}  Qd7 {[%clk 0:02:53]} 7. O-O {[%clk 0:02:52]}  Nf6 {[%clk 0:02:52]} 8. Nb3 {[%clk 0:02:51]}  Nc6 {[%clk 0:02:52]} 9. Nbxd4 {[%clk 0:02:49]}  a6 {[%clk 0:02:40]} 10. c3 {[%clk 0:02:46]}  Be7 {[%clk 0:02:38]} 11. Nxc6 {[%clk 0:02:33]}  Qxc6 {[%clk 0:02:39]} 12. Bb3 {[%clk 0:02:32]}  O-O {[%clk 0:02:38]} 13. Bf4 {[%clk 0:02:08]}  b5 {[%clk 0:02:29]} 14. Ne5 {[%clk 0:02:07]}  Qb6 {[%clk 0:02:29]} 15. Qe2 {[%clk 0:01:25]}  Bb7 {[%clk 0:02:24]} 16. Rfd1 {[%clk 0:01:23]}  Rad8 {[%clk 0:02:19]} 17. Bc2 {[%clk 0:01:05]}  Ba8 {[%clk 0:01:49]} 18. Kh1 {[%clk 0:00:53]}  Qb7 {[%clk 0:01:47]} 19. f3 {[%clk 0:00:54]}  Qb6 {[%clk 0:01:36]} 20. Bg3 {[%clk 0:00:47]}  Bd5 {[%clk 0:01:34]} 21. a3 {[%clk 0:00:44]}  g6 {[%clk 0:01:29]} 22. h3 {[%clk 0:00:37]}  Nh5 {[%clk 0:01:25]} 23. Bh2 {[%clk 0:00:35]}  Bh4 {[%clk 0:01:24]} 24. Ng4 {[%clk 0:00:28]}  Bc4 {[%clk 0:01:07]} 25. Bd3 {[%clk 0:00:20]}  Rxd3 {[%clk 0:00:59]} 26. Rxd3 {[%clk 0:00:21]}  Bxd3 {[%clk 0:00:59]} 27. Qxd3 {[%clk 0:00:21]}  Rd8 {[%clk 0:00:58]} 28. Qe2 {[%clk 0:00:20]}  f5 {[%clk 0:00:52]} 29. Ne3 {[%clk 0:00:14]}  Bg3 {[%clk 0:00:49]} 30. Nf1 {[%clk 0:00:13]}  Bxh2 {[%clk 0:00:47]} 31. Kxh2 {[%clk 0:00:14]}  Qd6+ {[%clk 0:00:47]} 32. Kg1 {[%clk 0:00:13]}  Nf4 {[%clk 0:00:42]} 33. Qe3 {[%clk 0:00:13]}  e5 {[%clk 0:00:39]} 34. Re1 {[%clk 0:00:12]}  Re8 {[%clk 0:00:33]} 35. Ng3 {[%clk 0:00:08]}  Qd5 {[%clk 0:00:23]} 36. Ne2 {[%clk 0:00:08]}  Nd3 {[%clk 0:00:20]} 37. Rd1 {[%clk 0:00:07]}  e4 {[%clk 0:00:20]} 38. Nf4 {[%clk 0:00:04]}  Qe5 {[%clk 0:00:08]} 39. Nxd3 {[%clk 0:00:04]}  exd3 {[%clk 0:00:09]} 40. Qxe5 {[%clk 0:00:04]}  Rxe5 {[%clk 0:00:09]} 41. Rxd3 {[%clk 0:00:05]}  Re2 {[%clk 0:00:10]} 42. Rd6 {[%clk 0:00:05]}  Rxb2 {[%clk 0:00:09]} 43. Rxa6 {[%clk 0:00:05]}  Rb3 {[%clk 0:00:10]} 44. Ra5 {[%clk 0:00:03]}  Rxc3 {[%clk 0:00:09]} 45. Rxb5 {[%clk 0:00:04]}  Rxa3 {[%clk 0:00:10]} 46. Rb7 {[%clk 0:00:05]}  Ra2 {[%clk 0:00:08]} 47. Kh2 {[%clk 0:00:05]}  f4 {[%clk 0:00:08]} 48. h4 {[%clk 0:00:05]}  h6 {[%clk 0:00:07]} 49. Kh3 {[%clk 0:00:05]}  h5 {[%clk 0:00:06]} 50. Kh2 {[%clk 0:00:05]}  Ra1 {[%clk 0:00:06]} 51. Rc7 {[%clk 0:00:05]}  Ra4 {[%clk 0:00:06]} 52. Rb7 {[%clk 0:00:05]}  Ra5 {[%clk 0:00:06]} 53. Rb4 {[%clk 0:00:05]}  Rf5 {[%clk 0:00:05]} 54. Rb7 {[%clk 0:00:05]}  Rf7 {[%clk 0:00:06]} 55. Rb6 {[%clk 0:00:04]}  Kg7 {[%clk 0:00:05]} 56. Rb4 {[%clk 0:00:05]}  Rf5 {[%clk 0:00:03]} 57. Kg1 {[%clk 0:00:05]}  Kh6 {[%clk 0:00:04]} 58. Kf2 {[%clk 0:00:05]}  Rf6 {[%clk 0:00:03]} 59. g3 {[%clk 0:00:05]}  fxg3+ {[%clk 0:00:03]} 60. Kxg3 {[%clk 0:00:06]}  Re6 {[%clk 0:00:03]} 61. f4 {[%clk 0:00:05]}  Re3+ {[%clk 0:00:03]} 62. Kg2 {[%clk 0:00:05]}  Re2+ {[%clk 0:00:03]} 63. Kg3 {[%clk 0:00:05]}  Ra2 {[%clk 0:00:04]} 64. Rb7 {[%clk 0:00:04]}  Ra3+ {[%clk 0:00:04]} 65. Kg2 {[%clk 0:00:05]}  Rd3 {[%clk 0:00:04]} 66. Ra7 {[%clk 0:00:04]}  Rd2+ {[%clk 0:00:04]} 67. Kg3 {[%clk 0:00:04]}  Rd1 {[%clk 0:00:05]} 68. Rb7 {[%clk 0:00:04]}  Rg1+ {[%clk 0:00:05]} 69. Kf3 {[%clk 0:00:02]}  Rg4 {[%clk 0:00:06]} 70. Rb8 {[%clk 0:00:02]}  Rxh4 {[%clk 0:00:05]} 71. Kg3 {[%clk 0:00:02]}  Rg4+ {[%clk 0:00:05]} 72. Kf3 {[%clk 0:00:03]}  Rg1 {[%clk 0:00:06]} 73. Rb6 {[%clk 0:00:03]}  Rf1+ {[%clk 0:00:05]} 74. Kg3 {[%clk 0:00:03]}  Kg7 {[%clk 0:00:05]} 75. Rc6 {[%clk 0:00:03]}  Kf7 {[%clk 0:00:05]} 76. Rb6 {[%clk 0:00:04]}  Kg7 {[%clk 0:00:05]} 77. Ra6 {[%clk 0:00:04]}  Rg1+ {[%clk 0:00:05]} 78. Kf3 {[%clk 0:00:04]}  h4 {[%clk 0:00:06]} 79. Rb6 {[%clk 0:00:04]}  h3 {[%clk 0:00:06]} 80. Kf2 {[%clk 0:00:05]}  h2 {[%clk 0:00:05]} 81. Rb7+ {[%clk 0:00:02]}  Kf6 {[%clk 0:00:05]} 82. Rb8 {[%clk 0:00:03]}  h1=Q {[%clk 0:00:05]} 0-1


[Site "https://www.chess.com"]

[Event "Titled Tuesday Blitz April 18 Late 2023"]
[White "Yoo, Christopher Woojin"]
[Black "Sliwicki, Damian"]
[WhiteFideId "30909694"]
[BlackFideId "1127128"]
[WhiteElo "2519"]
[BlackElo "2030"]
[Result "1-0"]
[Round "01"]
[TimeControl "180+2"]
[Date "2023.04.18"]
[WhiteClock "0:00:19"]
[BlackClock "0:00:08"]

1. c4 {[%clk 0:03:00]}  Nf6 {[%clk 0:02:53]} 2. d4 {[%clk 0:02:59]}  e6 {[%clk 0:02:39]} 3. Nf3 {[%clk 0:02:57]}  Bb4+ {[%clk 0:02:38]} 4. Bd2 {[%clk 0:02:54]}  Qe7 {[%clk 0:02:38]} 5. g3 {[%clk 0:02:46]}  Bxd2+ {[%clk 0:02:38]} 6. Qxd2 {[%clk 0:02:44]}  d6 {[%clk 0:02:39]} 7. Nc3 {[%clk 0:02:44]}  O-O {[%clk 0:02:22]} 8. Bg2 {[%clk 0:02:44]}  e5 {[%clk 0:02:21]} 9. O-O {[%clk 0:02:43]}  c6 {[%clk 0:02:08]} 10. e4 {[%clk 0:02:21]}  Nbd7 {[%clk 0:01:52]} 11. Rad1 {[%clk 0:02:20]}  h6 {[%clk 0:01:48]} 12. Rfe1 {[%clk 0:02:03]}  a5 {[%clk 0:01:46]} 13. b3 {[%clk 0:01:52]}  Re8 {[%clk 0:01:36]} 14. Qb2 {[%clk 0:01:35]}  Nb6 {[%clk 0:01:31]} 15. Qa3 {[%clk 0:01:25]}  Bg4 {[%clk 0:01:22]} 16. h3 {[%clk 0:01:01]}  Bxf3 {[%clk 0:01:21]} 17. Bxf3 {[%clk 0:01:02]}  a4 {[%clk 0:00:55]} 18. Qb4 {[%clk 0:01:01]}  Qc7 {[%clk 0:00:41]} 19. c5 {[%clk 0:00:56]}  dxc5 {[%clk 0:00:40]} 20. dxc5 {[%clk 0:00:55]}  Nbd7 {[%clk 0:00:30]} 21. Nxa4 {[%clk 0:00:55]}  Nf8 {[%clk 0:00:26]} 22. Qb6 {[%clk 0:00:37]}  Qc8 {[%clk 0:00:25]} 23. Bg2 {[%clk 0:00:33]}  Ne6 {[%clk 0:00:25]} 24. Rd2 {[%clk 0:00:32]}  Nd4 {[%clk 0:00:24]} 25. Qb4 {[%clk 0:00:29]}  Rd8 {[%clk 0:00:15]} 26. Nb6 {[%clk 0:00:27]}  Qe6 {[%clk 0:00:11]} 27. Nxa8 {[%clk 0:00:27]}  Rxa8 {[%clk 0:00:12]} 28. Qxb7 {[%clk 0:00:24]}  Qe8 {[%clk 0:00:11]} 29. Qb4 {[%clk 0:00:24]}  Rb8 {[%clk 0:00:08]} 30. Qc4 {[%clk 0:00:24]}  Nd7 {[%clk 0:00:09]} 31. b4 {[%clk 0:00:22]}  Ra8 {[%clk 0:00:07]} 32. Red1 {[%clk 0:00:21]}  Nf8 {[%clk 0:00:07]} 33. f4 {[%clk 0:00:18]}  Nfe6 {[%clk 0:00:04]} 34. fxe5 {[%clk 0:00:17]}  Qb8 {[%clk 0:00:05]} 35. Rxd4 {[%clk 0:00:17]}  Nxd4 {[%clk 0:00:05]} 36. Qxd4 {[%clk 0:00:18]}  Rxa2 {[%clk 0:00:02]} 37. Qd8+ {[%clk 0:00:18]}  Qxd8 {[%clk 0:00:03]} 38. Rxd8+ {[%clk 0:00:19]}  Kh7 {[%clk 0:00:04]} 39. Rd6 {[%clk 0:00:19]}  Rb2 {[%clk 0:00:04]} 40. Rxc6 {[%clk 0:00:20]}  Rxb4 {[%clk 0:00:05]} 41. Rb6 {[%clk 0:00:20]}  Rc4 {[%clk 0:00:05]} 42. c6 {[%clk 0:00:21]}  f5 {[%clk 0:00:05]} 43. exf5 {[%clk 0:00:20]}  g5 {[%clk 0:00:06]} 44. Rb7+ {[%clk 0:00:20]}  Kg8 {[%clk 0:00:06]} 45. Bd5+ {[%clk 0:00:20]}  Kh8 {[%clk 0:00:06]} 46. Bxc4 {[%clk 0:00:21]}  g4 {[%clk 0:00:06]} 47. Rb8+ {[%clk 0:00:20]}  Kg7 {[%clk 0:00:06]} 48. c7 {[%clk 0:00:19]}  gxh3 {[%clk 0:00:07]} 49. c8=Q {[%clk 0:00:19]}  h2+ {[%clk 0:00:08]} 50. Kh1 {[%clk 0:00:19]} 1-0


[Site "https://www.chess.com"]

[Event "Titled Tuesday Blitz April 18 Late 2023"]
[White "Golubev, Mikhail"]
[Black "Suleymanli, Aydin"]
[WhiteFideId "14100983"]
[BlackFideId "13413937"]
[WhiteElo "2374"]
[BlackElo "2559"]
[Result "0-1"]
[Round "01"]
[TimeControl "180+2"]
[Date "2023.04.18"]
[WhiteClock "0:00:03"]
[BlackClock "0:01:01"]

1. e4 {[%clk 0:02:59]}  e5 {[%clk 0:03:00]} 2. Nf3 {[%clk 0:02:58]}  Nc6 {[%clk 0:03:00]} 3. Bc4 {[%clk 0:02:58]}  Nf6 {[%clk 0:02:59]} 4. Ng5 {[%clk 0:02:58]}  d5 {[%clk 0:02:59]} 5. exd5 {[%clk 0:02:58]}  Na5 {[%clk 0:03:00]} 6. Bb5+ {[%clk 0:02:58]}  c6 {[%clk 0:03:00]} 7. dxc6 {[%clk 0:02:58]}  bxc6 {[%clk 0:03:01]} 8. Bd3 {[%clk 0:02:58]}  h6 {[%clk 0:02:56]} 9. Ne4 {[%clk 0:02:51]}  Nd5 {[%clk 0:02:55]} 10. O-O {[%clk 0:02:45]}  g6 {[%clk 0:02:50]} 11. Re1 {[%clk 0:02:41]}  Bg7 {[%clk 0:02:49]} 12. Bf1 {[%clk 0:02:29]}  O-O {[%clk 0:02:48]} 13. d3 {[%clk 0:02:28]}  f5 {[%clk 0:02:40]} 14. Nec3 {[%clk 0:02:26]}  Re8 {[%clk 0:02:33]} 15. Nxd5 {[%clk 0:02:21]}  cxd5 {[%clk 0:02:34]} 16. d4 {[%clk 0:02:21]}  e4 {[%clk 0:02:24]} 17. Bf4 {[%clk 0:02:05]}  Nc6 {[%clk 0:02:22]} 18. c4 {[%clk 0:01:57]}  Be6 {[%clk 0:02:09]} 19. Nc3 {[%clk 0:01:52]}  Nxd4 {[%clk 0:01:53]} 20. cxd5 {[%clk 0:01:39]}  Bxd5 {[%clk 0:01:52]} 21. Nxd5 {[%clk 0:01:33]}  Qxd5 {[%clk 0:01:53]} 22. Be3 {[%clk 0:01:33]}  Kh7 {[%clk 0:01:49]} 23. Rc1 {[%clk 0:01:18]}  Rac8 {[%clk 0:01:41]} 24. Rxc8 {[%clk 0:01:12]}  Rxc8 {[%clk 0:01:42]} 25. b3 {[%clk 0:01:11]}  a5 {[%clk 0:01:37]} 26. Bc4 {[%clk 0:01:10]}  Qd6 {[%clk 0:01:30]} 27. a4 {[%clk 0:01:04]}  Rd8 {[%clk 0:01:25]} 28. Bxd4 {[%clk 0:00:46]}  Bxd4 {[%clk 0:01:26]} 29. Qe2 {[%clk 0:00:46]}  Bc5 {[%clk 0:01:14]} 30. g3 {[%clk 0:00:28]}  h5 {[%clk 0:01:14]} 31. Kg2 {[%clk 0:00:24]}  h4 {[%clk 0:01:12]} 32. g4 {[%clk 0:00:17]}  Qf4 {[%clk 0:01:03]} 33. gxf5 {[%clk 0:00:15]}  Rd2 {[%clk 0:01:03]} 34. fxg6+ {[%clk 0:00:09]}  Kg7 {[%clk 0:01:03]} 35. Qxd2 {[%clk 0:00:03]}  Qxd2 {[%clk 0:01:03]} 36. Re2 {[%clk 0:00:04]}  Qf4 {[%clk 0:01:01]} 37. h3 {[%clk 0:00:03]}  Qf3+ {[%clk 0:01:01]} 0-1


[Site "https://www.chess.com"]

[Event "Titled Tuesday Blitz April 18 Late 2023"]
[White "Anton Guijarro, David"]
[Black "Prydun, Andriy"]
[WhiteFideId "2285525"]
[BlackFideId "14145898"]
[WhiteElo "2618"]
[BlackElo "2164"]
[Result "1-0"]
[Round "01"]
[TimeControl "180+2"]
[Date "2023.04.18"]
[WhiteClock "0:00:11"]
[BlackClock "0:00:05"]

1. d4 {[%clk 0:03:00]}  Nf6 {[%clk 0:02:59]} 2. Nf3 {[%clk 0:03:00]}  d5 {[%clk 0:02:59]} 3. e3 {[%clk 0:03:00]}  c6 {[%clk 0:02:59]} 4. c4 {[%clk 0:03:00]}  e6 {[%clk 0:02:59]} 5. Nbd2 {[%clk 0:03:00]}  Nbd7 {[%clk 0:02:59]} 6. b3 {[%clk 0:03:00]}  Bd6 {[%clk 0:02:58]} 7. Bb2 {[%clk 0:03:01]}  O-O {[%clk 0:02:58]} 8. Bd3 {[%clk 0:03:01]}  b6 {[%clk 0:02:58]} 9. O-O {[%clk 0:02:59]}  Bb7 {[%clk 0:02:57]} 10. Qe2 {[%clk 0:02:58]}  Qe7 {[%clk 0:02:57]} 11. Ne5 {[%clk 0:02:57]}  c5 {[%clk 0:02:40]} 12. f4 {[%clk 0:02:39]}  dxc4 {[%clk 0:02:07]} 13. bxc4 {[%clk 0:02:38]}  cxd4 {[%clk 0:01:32]} 14. exd4 {[%clk 0:02:38]}  Bb4 {[%clk 0:01:32]} 15. Ndf3 {[%clk 0:02:32]}  Rfd8 {[%clk 0:01:29]} 16. Ng5 {[%clk 0:02:27]}  Rf8 {[%clk 0:01:19]} 17. Nxd7 {[%clk 0:01:51]}  Qxd7 {[%clk 0:01:18]} 18. d5 {[%clk 0:01:49]}  h6 {[%clk 0:00:35]} 19. Bxf6 {[%clk 0:01:48]}  gxf6 {[%clk 0:00:35]} 20. Ne4 {[%clk 0:01:41]}  Qd8 {[%clk 0:00:20]} 21. Qg4+ {[%clk 0:01:20]}  Kh8 {[%clk 0:00:19]} 22. Qh4 {[%clk 0:01:14]}  Kg7 {[%clk 0:00:10]} 23. Rf3 {[%clk 0:01:12]}  Rh8 {[%clk 0:00:10]} 24. Nxf6 {[%clk 0:01:02]}  Bc3 {[%clk 0:00:09]} 25. Nh5+ {[%clk 0:00:28]}  Kg8 {[%clk 0:00:09]} 26. Qg3+ {[%clk 0:00:20]}  Kf8 {[%clk 0:00:08]} 27. Rd1 {[%clk 0:00:20]}  Rg8 {[%clk 0:00:07]} 28. Qf2 {[%clk 0:00:17]}  exd5 {[%clk 0:00:07]} 29. Bh7 {[%clk 0:00:18]}  d4 {[%clk 0:00:04]} 30. Bxg8 {[%clk 0:00:14]}  Kxg8 {[%clk 0:00:05]} 31. Rxc3 {[%clk 0:00:13]}  dxc3 {[%clk 0:00:05]} 32. Rxd8+ {[%clk 0:00:11]}  Rxd8 {[%clk 0:00:06]} 33. Qg3+ {[%clk 0:00:12]}  Kf8 {[%clk 0:00:05]} 34. Qxc3 {[%clk 0:00:11]} 1-0


[Site "https://www.chess.com"]

[Event "Titled Tuesday Blitz April 18 Late 2023"]
[White "Kubatko, Ivan"]
[Black "Pichot, Alan"]
[WhiteFideId "24111473"]
[BlackFideId "110973"]
[WhiteElo "2285"]
[BlackElo "2573"]
[Result "0-1"]
[Round "01"]
[TimeControl "180+2"]
[Date "2023.04.18"]
[WhiteClock "0:00:02"]
[BlackClock "0:01:05"]

1. e4 {[%clk 0:03:00]}  e5 {[%clk 0:02:56]} 2. Nf3 {[%clk 0:03:00]}  Nc6 {[%clk 0:02:56]} 3. Nc3 {[%clk 0:02:59]}  Nf6 {[%clk 0:02:55]} 4. g3 {[%clk 0:02:59]}  d5 {[%clk 0:02:52]} 5. exd5 {[%clk 0:03:00]}  Nxd5 {[%clk 0:02:52]} 6. d3 {[%clk 0:03:00]}  Nxc3 {[%clk 0:02:45]} 7. bxc3 {[%clk 0:03:00]}  Bc5 {[%clk 0:02:38]} 8. Bg2 {[%clk 0:03:00]}  O-O {[%clk 0:02:38]} 9. O-O {[%clk 0:03:00]}  Bb6 {[%clk 0:02:38]} 10. Re1 {[%clk 0:02:54]}  Re8 {[%clk 0:02:37]} 11. h3 {[%clk 0:02:26]}  h6 {[%clk 0:02:23]} 12. Be3 {[%clk 0:01:57]}  Bf5 {[%clk 0:02:13]} 13. Nd2 {[%clk 0:01:46]}  Qd7 {[%clk 0:02:07]} 14. Kh2 {[%clk 0:01:44]}  Rad8 {[%clk 0:02:06]} 15. Ne4 {[%clk 0:01:34]}  Bg6 {[%clk 0:02:01]} 16. Nc5 {[%clk 0:01:27]}  Bxc5 {[%clk 0:02:01]} 17. Bxc5 {[%clk 0:01:27]}  b6 {[%clk 0:01:50]} 18. Be3 {[%clk 0:01:17]}  Na5 {[%clk 0:01:50]} 19. Qg4 {[%clk 0:01:04]}  Qxg4 {[%clk 0:01:41]} 20. hxg4 {[%clk 0:01:05]}  c5 {[%clk 0:01:41]} 21. Rad1 {[%clk 0:00:46]}  c4 {[%clk 0:01:39]} 22. Be4 {[%clk 0:00:33]}  Bxe4 {[%clk 0:01:27]} 23. dxe4 {[%clk 0:00:33]}  f6 {[%clk 0:01:28]} 24. Kg2 {[%clk 0:00:27]}  Kf7 {[%clk 0:01:27]} 25. f3 {[%clk 0:00:26]}  Ke6 {[%clk 0:01:27]} 26. Kf2 {[%clk 0:00:26]}  Nb7 {[%clk 0:01:27]} 27. Ke2 {[%clk 0:00:25]}  Nd6 {[%clk 0:01:27]} 28. Rd5 {[%clk 0:00:19]}  Rd7 {[%clk 0:01:23]} 29. Red1 {[%clk 0:00:19]}  Red8 {[%clk 0:01:24]} 30. a4 {[%clk 0:00:18]}  Nb7 {[%clk 0:01:20]} 31. Rxd7 {[%clk 0:00:15]}  Rxd7 {[%clk 0:01:21]} 32. Rxd7 {[%clk 0:00:15]}  Kxd7 {[%clk 0:01:22]} 33. f4 {[%clk 0:00:14]}  Nd6 {[%clk 0:01:22]} 34. Kf3 {[%clk 0:00:13]}  Ke6 {[%clk 0:01:22]} 35. Bf2 {[%clk 0:00:10]}  b5 {[%clk 0:01:05]} 36. Bxa7 {[%clk 0:00:02]}  bxa4 {[%clk 0:01:04]} 37. Bc5 {[%clk 0:00:02]}  Nb5 {[%clk 0:01:05]} 38. Ke2 {[%clk 0:00:02]}  a3 {[%clk 0:01:05]} 0-1


[Site "https://www.chess.com"]